{"text_format":"1","workbook":"xlsx","n_sheets":4,"sheets":["Vstupné údaje","Výsledky MUŽI","Výsledky ŽENY","Výsledky MUŽI nad 35 rokov"],"not_rendered":{"charts":0,"images":0,"macros":1,"external_links":0,"defined_names":0,"comments":0,"pivot_tables":0},"unopened":[],"bounds":{"document_bytes":16777216,"sheet_cells":100000,"rows_first":2000,"rows_last":500,"rows_between":2000,"halvings":0,"cell_chars":16384,"cell_head_chars":4096},"cells_cut":0,"cells_raw":0,"read":"whole","date_system":"1900"}

{"sheet":"Vstupné údaje","index":0,"n_rows":7,"n_cols":2,"rows_kept":7,"cut":false,"hidden":false,"merged":[[0,0,0,1]]}
["Vstupné údaje"]
[]
["Požadovaný údaj","Hodnota"]
["Názov súťaže","Brumov"]
["Dátum","2.7.2023."]
["Začiatok","13:00:00"]
["Kolo v ročníku","5."]

{"sheet":"Výsledky MUŽI","index":1,"n_rows":27,"n_cols":13,"rows_kept":27,"cut":false,"hidden":false,"merged":[[0,0,0,7],[1,0,1,7],[0,12,1,12],[21,12,22,12]]}
[{"$f":"'Vstupné údaje'!$B$4","v":"Brumov"},null,null,null,null,null,null,null,null,null,null,null,"Návod na plnohodnotnú prácu s výsledkami"]
[{"$f":"CONCATENATE(\"Výsledky \",'Vstupné údaje'!$B$7,\". kola SMHL \",TEXT('Vstupné údaje'!$B$5,\"yyyy\"),\" v kategórii MUŽI, ktoré sa konalo \",TEXT('Vstupné údaje'!$B$5,\"dd.mm.yyyy\"),\" o \",TEXT('Vstupné údaje'!$B$6,\"hh:mm\"))","v":"Výsledky 5.. kola SMHL 2.7.2023. v kategórii MUŽI, ktoré sa konalo 2.7.2023. o 13:00"}]
[]
["Por.","Družstvo","Okres","ĽP","PP","Výs. čas","Body","Prestup",null,null,null,null,"Pri zadávaní výsledkov sa vypĺňajú nasledujúce stĺpce (zvyšné sa vypočítajú automaticky):"]
[{"$f":"IF(Výsledky_MUŽI[[#This Row],[Výs. čas]]=\"čas\",\"---\",IF(Výsledky_MUŽI[[#This Row],[Výs. čas]]=99.99,\"---\",IF(Výsledky_MUŽI[[#This Row],[Výs. čas]]=\"Diskv.\",\"---\",IF(Výsledky_MUŽI[[#This Row],[Výs. čas]]=\"Neúčasť\",\"---\",_xlfn.RANK.EQ(Výsledky_MUŽI[[#This Row],[Výs. čas]],Výsledky_MUŽI[Výs. čas],1)))))","v":1},"Prchalov",null,13.92,14.09,{"$f":"MAX(Výsledky_MUŽI[[#This Row],[ĽP]:[PP]])","v":14.09},null,null,null,null,null,null,"--- družstvo"]
[{"$f":"IF(Výsledky_MUŽI[[#This Row],[Výs. čas]]=\"čas\",\"---\",IF(Výsledky_MUŽI[[#This Row],[Výs. čas]]=99.99,\"---\",IF(Výsledky_MUŽI[[#This Row],[Výs. čas]]=\"Diskv.\",\"---\",IF(Výsledky_MUŽI[[#This Row],[Výs. čas]]=\"Neúčasť\",\"---\",_xlfn.RANK.EQ(Výsledky_MUŽI[[#This Row],[Výs. čas]],Výsledky_MUŽI[Výs. čas],1)))))","v":2},"Zbora",null,14.18,13.68,{"$f":"MAX(Výsledky_MUŽI[[#This Row],[ĽP]:[PP]])","v":14.18},20,null,null,null,null,null,"--- okres"]
[{"$f":"IF(Výsledky_MUŽI[[#This Row],[Výs. čas]]=\"čas\",\"---\",IF(Výsledky_MUŽI[[#This Row],[Výs. čas]]=99.99,\"---\",IF(Výsledky_MUŽI[[#This Row],[Výs. čas]]=\"Diskv.\",\"---\",IF(Výsledky_MUŽI[[#This Row],[Výs. čas]]=\"Neúčasť\",\"---\",_xlfn.RANK.EQ(Výsledky_MUŽI[[#This Row],[Výs. čas]],Výsledky_MUŽI[Výs. čas],1)))))","v":3},"Štítná nad Vláří",null,14.27,14.03,{"$f":"MAX(Výsledky_MUŽI[[#This Row],[ĽP]:[PP]])","v":14.27},17,"x",null,null,null,null,"--- ľavý prúd (ĽP)"]
[{"$f":"IF(Výsledky_MUŽI[[#This Row],[Výs. čas]]=\"čas\",\"---\",IF(Výsledky_MUŽI[[#This Row],[Výs. čas]]=99.99,\"---\",IF(Výsledky_MUŽI[[#This Row],[Výs. čas]]=\"Diskv.\",\"---\",IF(Výsledky_MUŽI[[#This Row],[Výs. čas]]=\"Neúčasť\",\"---\",_xlfn.RANK.EQ(Výsledky_MUŽI[[#This Row],[Výs. čas]],Výsledky_MUŽI[Výs. čas],1)))))","v":4},"Podlužany",null,14.31,13.51,{"$f":"MAX(Výsledky_MUŽI[[#This Row],[ĽP]:[PP]])","v":14.31},15,"x",null,null,null,null,"--- pravý prúd (PP)"]
[{"$f":"IF(Výsledky_MUŽI[[#This Row],[Výs. čas]]=\"čas\",\"---\",IF(Výsledky_MUŽI[[#This Row],[Výs. čas]]=99.99,\"---\",IF(Výsledky_MUŽI[[#This Row],[Výs. čas]]=\"Diskv.\",\"---\",IF(Výsledky_MUŽI[[#This Row],[Výs. čas]]=\"Neúčasť\",\"---\",_xlfn.RANK.EQ(Výsledky_MUŽI[[#This Row],[Výs. čas]],Výsledky_MUŽI[Výs. čas],1)))))","v":5},"Brumov B",null,14.56,14.46,{"$f":"MAX(Výsledky_MUŽI[[#This Row],[ĽP]:[PP]])","v":14.56},null,"x",null,null,null,null,"--- prestup"]
[{"$f":"IF(Výsledky_MUŽI[[#This Row],[Výs. čas]]=\"čas\",\"---\",IF(Výsledky_MUŽI[[#This Row],[Výs. čas]]=99.99,\"---\",IF(Výsledky_MUŽI[[#This Row],[Výs. čas]]=\"Diskv.\",\"---\",IF(Výsledky_MUŽI[[#This Row],[Výs. čas]]=\"Neúčasť\",\"---\",_xlfn.RANK.EQ(Výsledky_MUŽI[[#This Row],[Výs. čas]],Výsledky_MUŽI[Výs. čas],1)))))","v":6},"Hoštiná",null,14.63,14.4,{"$f":"MAX(Výsledky_MUŽI[[#This Row],[ĽP]:[PP]])","v":14.63},13]
[{"$f":"IF(Výsledky_MUŽI[[#This Row],[Výs. čas]]=\"čas\",\"---\",IF(Výsledky_MUŽI[[#This Row],[Výs. čas]]=99.99,\"---\",IF(Výsledky_MUŽI[[#This Row],[Výs. čas]]=\"Diskv.\",\"---\",IF(Výsledky_MUŽI[[#This Row],[Výs. čas]]=\"Neúčasť\",\"---\",_xlfn.RANK.EQ(Výsledky_MUŽI[[#This Row],[Výs. čas]],Výsledky_MUŽI[Výs. čas],1)))))","v":7},"Ďurďové",null,14.86,14.21,{"$f":"MAX(Výsledky_MUŽI[[#This Row],[ĽP]:[PP]])","v":14.86},11,null,null,null,null,null,"Dovolený formát zadávaných údajov:"]
[{"$f":"IF(Výsledky_MUŽI[[#This Row],[Výs. čas]]=\"čas\",\"---\",IF(Výsledky_MUŽI[[#This Row],[Výs. čas]]=99.99,\"---\",IF(Výsledky_MUŽI[[#This Row],[Výs. čas]]=\"Diskv.\",\"---\",IF(Výsledky_MUŽI[[#This Row],[Výs. čas]]=\"Neúčasť\",\"---\",_xlfn.RANK.EQ(Výsledky_MUŽI[[#This Row],[Výs. čas]],Výsledky_MUŽI[Výs. čas],1)))))","v":8},"Francova Lhota",null,14.96,14.22,{"$f":"MAX(Výsledky_MUŽI[[#This Row],[ĽP]:[PP]])","v":14.96},9,null,null,null,null,null,"Družstvo, okres"]
[{"$f":"IF(Výsledky_MUŽI[[#This Row],[Výs. čas]]=\"čas\",\"---\",IF(Výsledky_MUŽI[[#This Row],[Výs. čas]]=99.99,\"---\",IF(Výsledky_MUŽI[[#This Row],[Výs. čas]]=\"Diskv.\",\"---\",IF(Výsledky_MUŽI[[#This Row],[Výs. čas]]=\"Neúčasť\",\"---\",_xlfn.RANK.EQ(Výsledky_MUŽI[[#This Row],[Výs. čas]],Výsledky_MUŽI[Výs. čas],1)))))","v":9},"Visolaje",null,15.04,14.81,{"$f":"MAX(Výsledky_MUŽI[[#This Row],[ĽP]:[PP]])","v":15.04},8,"x",null,null,null,null,"--- ľubovoľný text"]
[{"$f":"IF(Výsledky_MUŽI[[#This Row],[Výs. čas]]=\"čas\",\"---\",IF(Výsledky_MUŽI[[#This Row],[Výs. čas]]=99.99,\"---\",IF(Výsledky_MUŽI[[#This Row],[Výs. čas]]=\"Diskv.\",\"---\",IF(Výsledky_MUŽI[[#This Row],[Výs. čas]]=\"Neúčasť\",\"---\",_xlfn.RANK.EQ(Výsledky_MUŽI[[#This Row],[Výs. čas]],Výsledky_MUŽI[Výs. čas],1)))))","v":10},"Lipová",null,15.23,14.25,{"$f":"MAX(Výsledky_MUŽI[[#This Row],[ĽP]:[PP]])","v":15.23},null,null,null,null,null,null,"Ľavý/pravý prúd"]
[{"$f":"IF(Výsledky_MUŽI[[#This Row],[Výs. čas]]=\"čas\",\"---\",IF(Výsledky_MUŽI[[#This Row],[Výs. čas]]=99.99,\"---\",IF(Výsledky_MUŽI[[#This Row],[Výs. čas]]=\"Diskv.\",\"---\",IF(Výsledky_MUŽI[[#This Row],[Výs. čas]]=\"Neúčasť\",\"---\",_xlfn.RANK.EQ(Výsledky_MUŽI[[#This Row],[Výs. čas]],Výsledky_MUŽI[Výs. čas],1)))))","v":11},"Krásno",null,14.58,15.44,{"$f":"MAX(Výsledky_MUŽI[[#This Row],[ĽP]:[PP]])","v":15.44},7,"x",null,null,null,null,"14.00 --- dokončený pokus"]
[{"$f":"IF(Výsledky_MUŽI[[#This Row],[Výs. čas]]=\"čas\",\"---\",IF(Výsledky_MUŽI[[#This Row],[Výs. čas]]=99.99,\"---\",IF(Výsledky_MUŽI[[#This Row],[Výs. čas]]=\"Diskv.\",\"---\",IF(Výsledky_MUŽI[[#This Row],[Výs. čas]]=\"Neúčasť\",\"---\",_xlfn.RANK.EQ(Výsledky_MUŽI[[#This Row],[Výs. čas]],Výsledky_MUŽI[Výs. čas],1)))))","v":12},"Poruba",null,14.59,15.57,{"$f":"MAX(Výsledky_MUŽI[[#This Row],[ĽP]:[PP]])","v":15.57},6,null,null,null,null,null,"99.99 --- nedokončený pokus"]
[{"$f":"IF(Výsledky_MUŽI[[#This Row],[Výs. čas]]=\"čas\",\"---\",IF(Výsledky_MUŽI[[#This Row],[Výs. čas]]=99.99,\"---\",IF(Výsledky_MUŽI[[#This Row],[Výs. čas]]=\"Diskv.\",\"---\",IF(Výsledky_MUŽI[[#This Row],[Výs. čas]]=\"Neúčasť\",\"---\",_xlfn.RANK.EQ(Výsledky_MUŽI[[#This Row],[Výs. čas]],Výsledky_MUŽI[Výs. čas],1)))))","v":13},"Lehota pod Vtáčnikom",null,15.62,15.55,{"$f":"MAX(Výsledky_MUŽI[[#This Row],[ĽP]:[PP]])","v":15.62},5,null,null,null,null,null,"D        --- diskvalifikácia družstva"]
[{"$f":"IF(Výsledky_MUŽI[[#This Row],[Výs. čas]]=\"čas\",\"---\",IF(Výsledky_MUŽI[[#This Row],[Výs. čas]]=99.99,\"---\",IF(Výsledky_MUŽI[[#This Row],[Výs. čas]]=\"Diskv.\",\"---\",IF(Výsledky_MUŽI[[#This Row],[Výs. čas]]=\"Neúčasť\",\"---\",_xlfn.RANK.EQ(Výsledky_MUŽI[[#This Row],[Výs. čas]],Výsledky_MUŽI[Výs. čas],1)))))","v":14},"Bylnice",null,16.25,15.59,{"$f":"MAX(Výsledky_MUŽI[[#This Row],[ĽP]:[PP]])","v":16.25},null,null,null,null,null,null,"N        --- neúčasť družstva"]
[{"$f":"IF(Výsledky_MUŽI[[#This Row],[Výs. čas]]=\"čas\",\"---\",IF(Výsledky_MUŽI[[#This Row],[Výs. čas]]=99.99,\"---\",IF(Výsledky_MUŽI[[#This Row],[Výs. čas]]=\"Diskv.\",\"---\",IF(Výsledky_MUŽI[[#This Row],[Výs. čas]]=\"Neúčasť\",\"---\",_xlfn.RANK.EQ(Výsledky_MUŽI[[#This Row],[Výs. čas]],Výsledky_MUŽI[Výs. čas],1)))))","v":15},"Svinná",null,15.54,16.36,{"$f":"MAX(Výsledky_MUŽI[[#This Row],[ĽP]:[PP]])","v":16.36},4,null,null,null,null,null,"Prestup"]
[{"$f":"IF(Výsledky_MUŽI[[#This Row],[Výs. čas]]=\"čas\",\"---\",IF(Výsledky_MUŽI[[#This Row],[Výs. čas]]=99.99,\"---\",IF(Výsledky_MUŽI[[#This Row],[Výs. čas]]=\"Diskv.\",\"---\",IF(Výsledky_MUŽI[[#This Row],[Výs. čas]]=\"Neúčasť\",\"---\",_xlfn.RANK.EQ(Výsledky_MUŽI[[#This Row],[Výs. čas]],Výsledky_MUŽI[Výs. čas],1)))))","v":16},"Křekov",null,16.04,16.55,{"$f":"MAX(Výsledky_MUŽI[[#This Row],[ĽP]:[PP]])","v":16.55},null,null,null,null,null,null,"X        --- ak malo družstvo prestup"]
[{"$f":"IF(Výsledky_MUŽI[[#This Row],[Výs. čas]]=\"čas\",\"---\",IF(Výsledky_MUŽI[[#This Row],[Výs. čas]]=99.99,\"---\",IF(Výsledky_MUŽI[[#This Row],[Výs. čas]]=\"Diskv.\",\"---\",IF(Výsledky_MUŽI[[#This Row],[Výs. čas]]=\"Neúčasť\",\"---\",_xlfn.RANK.EQ(Výsledky_MUŽI[[#This Row],[Výs. čas]],Výsledky_MUŽI[Výs. čas],1)))))","v":17},"Lednica",null,16.57,16.37,{"$f":"MAX(Výsledky_MUŽI[[#This Row],[ĽP]:[PP]])","v":16.57},3]
[{"$f":"IF(Výsledky_MUŽI[[#This Row],[Výs. čas]]=\"čas\",\"---\",IF(Výsledky_MUŽI[[#This Row],[Výs. čas]]=99.99,\"---\",IF(Výsledky_MUŽI[[#This Row],[Výs. čas]]=\"Diskv.\",\"---\",IF(Výsledky_MUŽI[[#This Row],[Výs. čas]]=\"Neúčasť\",\"---\",_xlfn.RANK.EQ(Výsledky_MUŽI[[#This Row],[Výs. čas]],Výsledky_MUŽI[Výs. čas],1)))))","v":18},"Turčianský Háj/Teplice",null,16.43,16.84,{"$f":"MAX(Výsledky_MUŽI[[#This Row],[ĽP]:[PP]])","v":16.84},2,null,null,null,null,null,"TIP: Ak potrebujete do tabuľky pridať nový riadok, presuňte sa do stĺpca \"H\" posledného riadku a stačte klávesu TAB."]
[{"$f":"IF(Výsledky_MUŽI[[#This Row],[Výs. čas]]=\"čas\",\"---\",IF(Výsledky_MUŽI[[#This Row],[Výs. čas]]=99.99,\"---\",IF(Výsledky_MUŽI[[#This Row],[Výs. čas]]=\"Diskv.\",\"---\",IF(Výsledky_MUŽI[[#This Row],[Výs. čas]]=\"Neúčasť\",\"---\",_xlfn.RANK.EQ(Výsledky_MUŽI[[#This Row],[Výs. čas]],Výsledky_MUŽI[Výs. čas],1)))))","v":19},"Lednické Rovne",null,19.41,18.670000000000002,{"$f":"MAX(Výsledky_MUŽI[[#This Row],[ĽP]:[PP]])","v":19.41},2]
[{"$f":"IF(Výsledky_MUŽI[[#This Row],[Výs. čas]]=\"čas\",\"---\",IF(Výsledky_MUŽI[[#This Row],[Výs. čas]]=99.99,\"---\",IF(Výsledky_MUŽI[[#This Row],[Výs. čas]]=\"Diskv.\",\"---\",IF(Výsledky_MUŽI[[#This Row],[Výs. čas]]=\"Neúčasť\",\"---\",_xlfn.RANK.EQ(Výsledky_MUŽI[[#This Row],[Výs. čas]],Výsledky_MUŽI[Výs. čas],1)))))","v":"---"},"Dohňany",null,99.99,99.99,{"$f":"MAX(Výsledky_MUŽI[[#This Row],[ĽP]:[PP]])","v":99.99},1,"x"]
["---","Ďurďové B",null,"D","D","D",1]
["---","Bojkovice",null,"D","D","D",null,"x"]
[null,null,null,null,null,null,"Prestupov:",{"$f":"COUNTIF(Výsledky_MUŽI[Prestup],\"X\")","v":7}]

{"sheet":"Výsledky ŽENY","index":2,"n_rows":22,"n_cols":13,"rows_kept":22,"cut":false,"hidden":false,"merged":[[0,0,0,7],[0,12,1,12],[1,0,1,7],[21,12,22,12]]}
[{"$f":"'Vstupné údaje'!$B$4","v":"Brumov"},null,null,null,null,null,null,null,null,null,null,null,"Návod na plnohodnotnú prácu s výsledkami"]
[{"$f":"CONCATENATE(\"Výsledky \",'Vstupné údaje'!$B$7,\". kola SMHL \",TEXT('Vstupné údaje'!$B$5,\"yyyy\"),\" v kategórii ŽENY, ktoré sa konalo \",TEXT('Vstupné údaje'!$B$5,\"dd.mm.yyyy\"),\" o \",TEXT('Vstupné údaje'!$B$6,\"hh:mm\"))","v":"Výsledky 5.. kola SMHL 2.7.2023. v kategórii ŽENY, ktoré sa konalo 2.7.2023. o 13:00"}]
[]
["Por.","Družstvo","Okres","ĽP","PP","Výs. čas","Body","Prestup",null,null,null,null,"Pri zadávaní výsledkov sa vypĺňajú nasledujúce stĺpce (zvyšné sa vypočítajú automaticky):"]
[{"$f":"IF(Výsledky_ŽENY[[#This Row],[Výs. čas]]=\"čas\",\"---\",IF(Výsledky_ŽENY[[#This Row],[Výs. čas]]=99.99,\"---\",IF(Výsledky_ŽENY[[#This Row],[Výs. čas]]=\"Diskv.\",\"---\",IF(Výsledky_ŽENY[[#This Row],[Výs. čas]]=\"Neúčasť\",\"---\",_xlfn.RANK.EQ(Výsledky_ŽENY[[#This Row],[Výs. čas]],Výsledky_ŽENY[Výs. čas],1)))))","v":1},"Dulov",null,17.38,16.28,{"$f":"MAX(Výsledky_ŽENY[[#This Row],[ĽP]:[PP]])","v":17.38},10,null,null,null,null,null,"--- družstvo"]
[{"$f":"IF(Výsledky_ŽENY[[#This Row],[Výs. čas]]=\"čas\",\"---\",IF(Výsledky_ŽENY[[#This Row],[Výs. čas]]=99.99,\"---\",IF(Výsledky_ŽENY[[#This Row],[Výs. čas]]=\"Diskv.\",\"---\",IF(Výsledky_ŽENY[[#This Row],[Výs. čas]]=\"Neúčasť\",\"---\",_xlfn.RANK.EQ(Výsledky_ŽENY[[#This Row],[Výs. čas]],Výsledky_ŽENY[Výs. čas],1)))))","v":2},"Zlatníky",null,17.73,15.99,{"$f":"MAX(Výsledky_ŽENY[[#This Row],[ĽP]:[PP]])","v":17.73},8,null,null,null,null,null,"--- okres"]
[{"$f":"IF(Výsledky_ŽENY[[#This Row],[Výs. čas]]=\"čas\",\"---\",IF(Výsledky_ŽENY[[#This Row],[Výs. čas]]=99.99,\"---\",IF(Výsledky_ŽENY[[#This Row],[Výs. čas]]=\"Diskv.\",\"---\",IF(Výsledky_ŽENY[[#This Row],[Výs. čas]]=\"Neúčasť\",\"---\",_xlfn.RANK.EQ(Výsledky_ŽENY[[#This Row],[Výs. čas]],Výsledky_ŽENY[Výs. čas],1)))))","v":3},"Mostiště",null,18.72,18.829999999999998,{"$f":"MAX(Výsledky_ŽENY[[#This Row],[ĽP]:[PP]])","v":18.829999999999998},null,"x",null,null,null,null,"--- ľavý prúd (ĽP)"]
[{"$f":"IF(Výsledky_ŽENY[[#This Row],[Výs. čas]]=\"čas\",\"---\",IF(Výsledky_ŽENY[[#This Row],[Výs. čas]]=99.99,\"---\",IF(Výsledky_ŽENY[[#This Row],[Výs. čas]]=\"Diskv.\",\"---\",IF(Výsledky_ŽENY[[#This Row],[Výs. čas]]=\"Neúčasť\",\"---\",_xlfn.RANK.EQ(Výsledky_ŽENY[[#This Row],[Výs. čas]],Výsledky_ŽENY[Výs. čas],1)))))","v":4},"Popov",null,18.899999999999999,18.22,{"$f":"MAX(Výsledky_ŽENY[[#This Row],[ĽP]:[PP]])","v":18.899999999999999},null,"x",null,null,null,null,"--- pravý prúd (PP)"]
[{"$f":"IF(Výsledky_ŽENY[[#This Row],[Výs. čas]]=\"čas\",\"---\",IF(Výsledky_ŽENY[[#This Row],[Výs. čas]]=99.99,\"---\",IF(Výsledky_ŽENY[[#This Row],[Výs. čas]]=\"Diskv.\",\"---\",IF(Výsledky_ŽENY[[#This Row],[Výs. čas]]=\"Neúčasť\",\"---\",_xlfn.RANK.EQ(Výsledky_ŽENY[[#This Row],[Výs. čas]],Výsledky_ŽENY[Výs. čas],1)))))","v":5},"Bojkovice",null,19.12,16.91,{"$f":"MAX(Výsledky_ŽENY[[#This Row],[ĽP]:[PP]])","v":19.12},null,null,null,null,null,null,"--- prestup"]
[{"$f":"IF(Výsledky_ŽENY[[#This Row],[Výs. čas]]=\"čas\",\"---\",IF(Výsledky_ŽENY[[#This Row],[Výs. čas]]=99.99,\"---\",IF(Výsledky_ŽENY[[#This Row],[Výs. čas]]=\"Diskv.\",\"---\",IF(Výsledky_ŽENY[[#This Row],[Výs. čas]]=\"Neúčasť\",\"---\",_xlfn.RANK.EQ(Výsledky_ŽENY[[#This Row],[Výs. čas]],Výsledky_ŽENY[Výs. čas],1)))))","v":6},"Kocurany",null,20.22,19.28,{"$f":"MAX(Výsledky_ŽENY[[#This Row],[ĽP]:[PP]])","v":20.22}]
[{"$f":"IF(Výsledky_ŽENY[[#This Row],[Výs. čas]]=\"čas\",\"---\",IF(Výsledky_ŽENY[[#This Row],[Výs. čas]]=99.99,\"---\",IF(Výsledky_ŽENY[[#This Row],[Výs. čas]]=\"Diskv.\",\"---\",IF(Výsledky_ŽENY[[#This Row],[Výs. čas]]=\"Neúčasť\",\"---\",_xlfn.RANK.EQ(Výsledky_ŽENY[[#This Row],[Výs. čas]],Výsledky_ŽENY[Výs. čas],1)))))","v":7},"Valašské Příkazy",null,20.36,18.41,{"$f":"MAX(Výsledky_ŽENY[[#This Row],[ĽP]:[PP]])","v":20.36},null,null,null,null,null,null,"Dovolený formát zadávaných údajov:"]
[{"$f":"IF(Výsledky_ŽENY[[#This Row],[Výs. čas]]=\"čas\",\"---\",IF(Výsledky_ŽENY[[#This Row],[Výs. čas]]=99.99,\"---\",IF(Výsledky_ŽENY[[#This Row],[Výs. čas]]=\"Diskv.\",\"---\",IF(Výsledky_ŽENY[[#This Row],[Výs. čas]]=\"Neúčasť\",\"---\",_xlfn.RANK.EQ(Výsledky_ŽENY[[#This Row],[Výs. čas]],Výsledky_ŽENY[Výs. čas],1)))))","v":8},"Rychaltice",null,20.9,20.48,{"$f":"MAX(Výsledky_ŽENY[[#This Row],[ĽP]:[PP]])","v":20.9},null,null,null,null,null,null,"Družstvo, okres"]
[{"$f":"IF(Výsledky_ŽENY[[#This Row],[Výs. čas]]=\"čas\",\"---\",IF(Výsledky_ŽENY[[#This Row],[Výs. čas]]=99.99,\"---\",IF(Výsledky_ŽENY[[#This Row],[Výs. čas]]=\"Diskv.\",\"---\",IF(Výsledky_ŽENY[[#This Row],[Výs. čas]]=\"Neúčasť\",\"---\",_xlfn.RANK.EQ(Výsledky_ŽENY[[#This Row],[Výs. čas]],Výsledky_ŽENY[Výs. čas],1)))))","v":9},"Turčianske Teplice",null,22.98,23.17,{"$f":"MAX(Výsledky_ŽENY[[#This Row],[ĽP]:[PP]])","v":23.17},null,null,null,null,null,null,"--- ľubovoľný text"]
[{"$f":"IF(Výsledky_ŽENY[[#This Row],[Výs. čas]]=\"čas\",\"---\",IF(Výsledky_ŽENY[[#This Row],[Výs. čas]]=99.99,\"---\",IF(Výsledky_ŽENY[[#This Row],[Výs. čas]]=\"Diskv.\",\"---\",IF(Výsledky_ŽENY[[#This Row],[Výs. čas]]=\"Neúčasť\",\"---\",_xlfn.RANK.EQ(Výsledky_ŽENY[[#This Row],[Výs. čas]],Výsledky_ŽENY[Výs. čas],1)))))","v":10},"Nedašova Lhota",null,24.1,17.100000000000001,{"$f":"MAX(Výsledky_ŽENY[[#This Row],[ĽP]:[PP]])","v":24.1},6,null,null,null,null,null,"Ľavý/pravý prúd"]
[{"$f":"IF(Výsledky_ŽENY[[#This Row],[Výs. čas]]=\"čas\",\"---\",IF(Výsledky_ŽENY[[#This Row],[Výs. čas]]=99.99,\"---\",IF(Výsledky_ŽENY[[#This Row],[Výs. čas]]=\"Diskv.\",\"---\",IF(Výsledky_ŽENY[[#This Row],[Výs. čas]]=\"Neúčasť\",\"---\",_xlfn.RANK.EQ(Výsledky_ŽENY[[#This Row],[Výs. čas]],Výsledky_ŽENY[Výs. čas],1)))))","v":11},"Nosice Žabky B",null,25.27,29.95,{"$f":"MAX(Výsledky_ŽENY[[#This Row],[ĽP]:[PP]])","v":29.95},4,null,null,null,null,null,"14.00 --- dokončený pokus"]
[{"$f":"IF(Výsledky_ŽENY[[#This Row],[Výs. čas]]=\"čas\",\"---\",IF(Výsledky_ŽENY[[#This Row],[Výs. čas]]=99.99,\"---\",IF(Výsledky_ŽENY[[#This Row],[Výs. čas]]=\"Diskv.\",\"---\",IF(Výsledky_ŽENY[[#This Row],[Výs. čas]]=\"Neúčasť\",\"---\",_xlfn.RANK.EQ(Výsledky_ŽENY[[#This Row],[Výs. čas]],Výsledky_ŽENY[Výs. čas],1)))))","v":12},"Dolní Bečva",null,31.44,26.57,{"$f":"MAX(Výsledky_ŽENY[[#This Row],[ĽP]:[PP]])","v":31.44},null,null,null,null,null,null,"99.99 --- nedokončený pokus"]
[{"$f":"IF(Výsledky_ŽENY[[#This Row],[Výs. čas]]=\"čas\",\"---\",IF(Výsledky_ŽENY[[#This Row],[Výs. čas]]=99.99,\"---\",IF(Výsledky_ŽENY[[#This Row],[Výs. čas]]=\"Diskv.\",\"---\",IF(Výsledky_ŽENY[[#This Row],[Výs. čas]]=\"Neúčasť\",\"---\",_xlfn.RANK.EQ(Výsledky_ŽENY[[#This Row],[Výs. čas]],Výsledky_ŽENY[Výs. čas],1)))))","v":"---"},"Vlachovice",null,99.99,99.99,{"$f":"MAX(Výsledky_ŽENY[[#This Row],[ĽP]:[PP]])","v":99.99},null,"x",null,null,null,null,"D        --- diskvalifikácia družstva"]
["---","Lidečko",null,"D ","D","D",null,null,null,null,null,null,"N        --- neúčasť družstva"]
[null,null,null,null,null,null,"Prestupov:",{"$f":"COUNTIF(Výsledky_ŽENY[Prestup],\"X\")","v":3},null,null,null,null,"Prestup"]
[null,null,null,null,null,null,null,null,null,null,null,null,"X        --- ak malo družstvo prestup"]
[]
[null,null,null,null,null,null,null,null,null,null,null,null,"TIP: Ak potrebujete do tabuľky pridať nový riadok, presuňte sa do stĺpca \"H\" posledného riadku a stačte klávesu TAB."]

{"sheet":"Výsledky MUŽI nad 35 rokov","index":3,"n_rows":22,"n_cols":13,"rows_kept":22,"cut":false,"hidden":false,"merged":[[0,0,0,7],[0,12,1,12],[1,0,1,7],[21,12,22,12]]}
[{"$f":"'Vstupné údaje'!$B$4","v":"Brumov"},null,null,null,null,null,null,null,null,null,null,null,"Návod na plnohodnotnú prácu s výsledkami"]
[{"$f":"CONCATENATE(\"Výsledky \",'Vstupné údaje'!$B$7,\". kola SMHL \",TEXT('Vstupné údaje'!$B$5,\"yyyy\"),\" v kategórii MUŽI nad 35 rokov, ktoré sa konalo \",TEXT('Vstupné údaje'!$B$5,\"dd.mm.yyyy\"),\" o \",TEXT('Vstupné údaje'!$B$6,\"hh:mm\"))","v":"Výsledky 5.. kola SMHL 2.7.2023. v kategórii MUŽI nad 35 rokov, ktoré sa konalo 2.7.2023. o 13:00"}]
[]
["Por.","Družstvo","Okres","ĽP","PP","Výs. čas","Body","Prestup",null,null,null,null,"Pri zadávaní výsledkov sa vypĺňajú nasledujúce stĺpce (zvyšné sa vypočítajú automaticky):"]
[{"$f":"IF(Výsledky_ŽENY9[[#This Row],[Výs. čas]]=\"čas\",\"---\",IF(Výsledky_ŽENY9[[#This Row],[Výs. čas]]=99.99,\"---\",IF(Výsledky_ŽENY9[[#This Row],[Výs. čas]]=\"Diskv.\",\"---\",IF(Výsledky_ŽENY9[[#This Row],[Výs. čas]]=\"Neúčasť\",\"---\",_xlfn.RANK.EQ(Výsledky_ŽENY9[[#This Row],[Výs. čas]],Výsledky_ŽENY9[Výs. čas],1)))))","v":1},"Ihriště","1",14.16,14.65,{"$f":"MAX(Výsledky_ŽENY9[[#This Row],[ĽP]:[PP]])","v":14.65},{"$f":"IF(Výsledky_ŽENY9[[#This Row],[Por.]]=1,10,IF(Výsledky_ŽENY9[[#This Row],[Por.]]=2,8,IF(Výsledky_ŽENY9[[#This Row],[Por.]]=3,6,IF(Výsledky_ŽENY9[[#This Row],[Por.]]=4,4,IF(Výsledky_ŽENY9[[#This Row],[Por.]]=5,2,IF(Výsledky_ŽENY9[[#This Row],[Výs. čas]]=99.99,1,IF(Výsledky_ŽENY9[[#This Row],[Výs. čas]]=\"Diskv.\",1,IF(Výsledky_ŽENY9[[#This Row],[Výs. čas]]=\"Neúčasť\",0,2))))))))","v":10},"x",null,null,null,null,"--- družstvo"]
[{"$f":"IF(Výsledky_ŽENY9[[#This Row],[Výs. čas]]=\"čas\",\"---\",IF(Výsledky_ŽENY9[[#This Row],[Výs. čas]]=99.99,\"---\",IF(Výsledky_ŽENY9[[#This Row],[Výs. čas]]=\"Diskv.\",\"---\",IF(Výsledky_ŽENY9[[#This Row],[Výs. čas]]=\"Neúčasť\",\"---\",_xlfn.RANK.EQ(Výsledky_ŽENY9[[#This Row],[Výs. čas]],Výsledky_ŽENY9[Výs. čas],1)))))","v":2},"Lednické Rovne","2",15.84,16.41,{"$f":"MAX(Výsledky_ŽENY9[[#This Row],[ĽP]:[PP]])","v":16.41},{"$f":"IF(Výsledky_ŽENY9[[#This Row],[Por.]]=1,10,IF(Výsledky_ŽENY9[[#This Row],[Por.]]=2,8,IF(Výsledky_ŽENY9[[#This Row],[Por.]]=3,6,IF(Výsledky_ŽENY9[[#This Row],[Por.]]=4,4,IF(Výsledky_ŽENY9[[#This Row],[Por.]]=5,2,IF(Výsledky_ŽENY9[[#This Row],[Výs. čas]]=99.99,1,IF(Výsledky_ŽENY9[[#This Row],[Výs. čas]]=\"Diskv.\",1,IF(Výsledky_ŽENY9[[#This Row],[Výs. čas]]=\"Neúčasť\",0,2))))))))","v":8},null,null,null,null,null,"--- okres"]
[{"$f":"IF(Výsledky_ŽENY9[[#This Row],[Výs. čas]]=\"čas\",\"---\",IF(Výsledky_ŽENY9[[#This Row],[Výs. čas]]=99.99,\"---\",IF(Výsledky_ŽENY9[[#This Row],[Výs. čas]]=\"Diskv.\",\"---\",IF(Výsledky_ŽENY9[[#This Row],[Výs. čas]]=\"Neúčasť\",\"---\",_xlfn.RANK.EQ(Výsledky_ŽENY9[[#This Row],[Výs. čas]],Výsledky_ŽENY9[Výs. čas],1)))))","v":3},"Rychaltice","3",17.45,17.079999999999998,{"$f":"MAX(Výsledky_ŽENY9[[#This Row],[ĽP]:[PP]])","v":17.45},null,null,null,null,null,null,"--- ľavý prúd (ĽP)"]
[{"$f":"IF(Výsledky_ŽENY9[[#This Row],[Výs. čas]]=\"čas\",\"---\",IF(Výsledky_ŽENY9[[#This Row],[Výs. čas]]=99.99,\"---\",IF(Výsledky_ŽENY9[[#This Row],[Výs. čas]]=\"Diskv.\",\"---\",IF(Výsledky_ŽENY9[[#This Row],[Výs. čas]]=\"Neúčasť\",\"---\",_xlfn.RANK.EQ(Výsledky_ŽENY9[[#This Row],[Výs. čas]],Výsledky_ŽENY9[Výs. čas],1)))))","v":4},"Bystričany","4",15.96,17.739999999999998,{"$f":"MAX(Výsledky_ŽENY9[[#This Row],[ĽP]:[PP]])","v":17.739999999999998},6,"x",null,null,null,null,"--- pravý prúd (PP)"]
[null,null,null,null,null,null,"Prestupov:",{"$f":"COUNTIF(Výsledky_ŽENY9[Prestup],\"X\")","v":2},null,null,null,null,"--- prestup"]
[]
[null,null,null,null,null,null,null,null,null,null,null,null,"Dovolený formát zadávaných údajov:"]
[null,null,null,null,null,null,null,null,null,null,null,null,"Družstvo, okres"]
[null,null,null,null,null,null,null,null,null,null,null,null,"--- ľubovoľný text"]
[null,null,null,null,null,null,null,null,null,null,null,null,"Ľavý/pravý prúd"]
[null,null,null,null,null,null,null,null,null,null,null,null,"14.00 --- dokončený pokus"]
[null,null,null,null,null,null,null,null,null,null,null,null,"99.99 --- nedokončený pokus"]
[null,null,null,null,null,null,null,null,null,null,null,null,"D        --- diskvalifikácia družstva"]
[null,null,null,null,null,null,null,null,null,null,null,null,"N        --- neúčasť družstva"]
[null,null,null,null,null,null,null,null,null,null,null,null,"Prestup"]
[null,null,null,null,null,null,null,null,null,null,null,null,"X        --- ak malo družstvo prestup"]
[]
[null,null,null,null,null,null,null,null,null,null,null,null,"TIP: Ak potrebujete do tabuľky pridať nový riadok, presuňte sa do stĺpca \"H\" posledného riadku a stačte klávesu TAB."]